Department Family,Entity,Date,Expense Type,Expense Area,Supplier,Transaction Number,Amount
DOH,London Ambulance Service NHS Trust,01/09/2016,Computer Software,Infrastructure Management,Software Box Ltd,285232,136728
DOH,London Ambulance Service NHS Trust,01/09/2016,Building Maint-Planned,Estate Management,Arena Maintenance Contractors,286866,31494.36
DOH,London Ambulance Service NHS Trust,01/09/2016,Private Ambulance Hire,Director Of Ops,X9 Services,287042,36662.19
DOH,London Ambulance Service NHS Trust,07/09/2016,Private Ambulance Hire,Director Of Ops,Medical Services Ltd,287075,43063.21
DOH,London Ambulance Service NHS Trust,01/09/2016,Rent,Eac Training,Dron & Wright,287468,31311.48
DOH,London Ambulance Service NHS Trust,01/09/2016,Salary Sacrifice - Cars Loan,Balance Sheet,Tuskerdirect Ltd,287470,48791.62
DOH,London Ambulance Service NHS Trust,07/09/2016,Private Ambulance Hire,Director Of Ops,X9 Services,287560,36288.11
DOH,London Ambulance Service NHS Trust,14/09/2016,Private Ambulance Hire,Director Of Ops,Srcl Ltd,287569,37247.33
DOH,London Ambulance Service NHS Trust,14/09/2016,Private Ambulance Hire,Director Of Ops,Medical Services Ltd,287666,43387.99
DOH,London Ambulance Service NHS Trust,01/09/2016,Contract Labour,North East Vp Pilot Project,Interserve Hospital Services,288107,54948
DOH,London Ambulance Service NHS Trust,01/09/2016,Contract Labour,Corporate Logistics,Interserve Hospital Services,288108,258074.86
DOH,London Ambulance Service NHS Trust,01/09/2016,Occupational Health Fees,Staff Support,Health Management Limited,288113,83163.76
DOH,London Ambulance Service NHS Trust,01/09/2016,Tyres,Fleet Support Services,Ats Euromaster Ltd,288133,37007.7
DOH,London Ambulance Service NHS Trust,01/09/2016,Rent,Estate Management,Dron & Wright,288260,91596.88
DOH,London Ambulance Service NHS Trust,01/09/2016,Occupational Health Fees,Staff Support,Health Management Limited,288297,82698.13
DOH,London Ambulance Service NHS Trust,07/09/2016,Consultancy Fees,Tx - Pmo - Pmo,Pa Consulting Services Ltd,288492,42680.4
DOH,London Ambulance Service NHS Trust,07/09/2016,Rent,Cody Road Ambulance Station,Cbre Ltd,288545,79650
DOH,London Ambulance Service NHS Trust,07/09/2016,Service Charges,Cody Road Ambulance Station,Cbre Ltd,288545,3293.3
DOH,London Ambulance Service NHS Trust,07/09/2016,Electricity,Estate Management,British Gas,288742,29261.84
DOH,London Ambulance Service NHS Trust,07/09/2016,External Training Services,International Paramedics,F.T.S. Solutions Ltd,288832,26460
DOH,London Ambulance Service NHS Trust,14/09/2016,Rent,Pocock Street,Tlg Llc,289125,50313.49
DOH,London Ambulance Service NHS Trust,21/09/2016,Rent,Southwark Bridge Road,Zurich Assurance Ltd,289163,32018.4
DOH,London Ambulance Service NHS Trust,21/09/2016,Service Charges,Southwark Bridge Road,Zurich Assurance Ltd,289163,8805.97
DOH,London Ambulance Service NHS Trust,14/09/2016,Cleaning Of Premises,Estate Management,Lakethorne Ltd,289207,82755.37
DOH,London Ambulance Service NHS Trust,21/09/2016,Rent,Nhs 111 Relocation,Bilfinger Gva (Pma321),289358,60128.26
DOH,London Ambulance Service NHS Trust,21/09/2016,Service Charges,Nhs 111 Relocation,Bilfinger Gva (Pma321),289358,20918.4
DOH,London Ambulance Service NHS Trust,07/09/2016,Vehicles,Capital,S & B Commercials Plc,289382,36855.6
DOH,London Ambulance Service NHS Trust,14/09/2016,Data Network Rental,Networks,Bt Global Services,289541,44524.01
DOH,London Ambulance Service NHS Trust,14/09/2016,Uniform,Director Of Ops,Mwuk Ltd T/A Dimensions Clothing,289647,37224.18
DOH,London Ambulance Service NHS Trust,14/09/2016,Pts Uniform Purchase,Director Of Ops,Mwuk Ltd T/A Dimensions Clothing,289647,3749.76
DOH,London Ambulance Service NHS Trust,27/09/2016,Defibrillator Leases,Fru Procurement,De Lage Landen Leasing Ltd,289707,34959.6
DOH,London Ambulance Service NHS Trust,14/09/2016,Lease Costs For Ops Vehicles,Non Emergency Transport,Tp Leasing Ltd,289957,34424.02
DOH,London Ambulance Service NHS Trust,14/09/2016,Lease Costs For Ops Vehicles,Non Emergency Transport,Tp Leasing Ltd,289958,74144.03
DOH,London Ambulance Service NHS Trust,14/09/2016,Lease Costs For Ops Vehicles,Non Emergency Transport,Tp Leasing Ltd,289959,42368.02
DOH,London Ambulance Service NHS Trust,14/09/2016,Building Maint-Planned,Kenton Estates,Expert Property Solutions Ltd,290173,27816
DOH,London Ambulance Service NHS Trust,27/09/2016,Contract Labour,Vehicle Resouce Centre,Churchill Contract Services Ltd,290339,72765.38
DOH,London Ambulance Service NHS Trust,21/09/2016,Cac Tools Maintenance,Cad Support,Northgate Public Services (Uk) Ltd,290386,46373.83
DOH,London Ambulance Service NHS Trust,21/09/2016,Private Ambulance Hire,Director Of Ops,X9 Services,290577,35582.73
DOH,London Ambulance Service NHS Trust,21/09/2016,Private Ambulance Hire,Director Of Ops,Srcl Ltd,290604,38502.51
DOH,London Ambulance Service NHS Trust,21/09/2016,Private Ambulance Hire,Director Of Ops,Medical Services Ltd,290640,45148.62
DOH,London Ambulance Service NHS Trust,21/09/2016,Rent,Islington Ambulance,City Of London,290903,42000
DOH,London Ambulance Service NHS Trust,27/09/2016,Defibrillator Maintenance,Supply & Material Management,Physio-Control Uk Sales Ltd,291181,29982.11
DOH,London Ambulance Service NHS Trust,27/09/2016,Rent,Eac Training,Dron & Wright,291762,31311.48
DOH,London Ambulance Service NHS Trust,27/09/2016,Data Network Rental,Networks,Bt Plc,291991,30841.56
DOH,London Ambulance Service NHS Trust,27/09/2016,Occupational Health Fees,Staff Support,Health Management Limited,292056,84991.81
DOH,London Ambulance Service NHS Trust,27/09/2016,Computer Hardware,Nhs 111 Relocation,Bt Plc,292178,27660
DOH,London Ambulance Service NHS Trust,23/09/2016,Contract Labour,Vehicle Resouce Centre,Churchill Contract Services Ltd,292375,29188.42
DOH,London Ambulance Service NHS Trust,27/09/2016,Tyres,Fleet Support Services,Ats Euromaster Ltd,292421,45222.35
DOH,London Ambulance Service NHS Trust,01/09/2016,Ensign Insurance Debtor,Control Accounts,QBE International Insurance T/A Ensign,36435,270690.83
DOH,London Ambulance Service NHS Trust,27/09/2016,Medical Gas,Director Of Ops,British Oxygen,37042,116203.94
DOH,London Ambulance Service NHS Trust,15/09/2016,Fuel,Director Of Ops,BP Oil,36779,191915.37
DOH,London Ambulance Service NHS Trust,21/09/2016,Child Care Arrangements,Payroll,Computerserve Vouchers,36863,30145.09
DOH,London Ambulance Service NHS Trust,30/09/2016,Fuel,Director Of Ops,BP Oil,37348,186502.34
